[Event "*** Titled Tuesday Blitz"]
[Site "Chess.com"]
[Date "2020.05.12"]
[Round "2"]
[White "barbara25"]
[Black "Rozum_Ivan"]
[Result "0-1"]
[WhiteElo "2303"]
[BlackElo "2603"]
[TimeControl "180+1"]
[EndTime "10:15:55 PDT"]
[Termination "Rozum_Ivan won by resignation"]

1. e4 {[%clk 0:03:00.9]} 1... c6 {[%clk 0:02:58.5]} 2. d4 {[%clk 0:03:00]} 2...
d5 {[%clk 0:02:59.4]} 3. f3 {[%clk 0:03:00.1]} 3... g6 {[%clk 0:02:56.8]} 4. Nc3
{[%clk 0:02:59.2]} 4... Bg7 {[%clk 0:02:57.3]} 5. Nge2 {[%clk 0:02:59.7]} 5...
dxe4 {[%clk 0:02:53.5]} 6. fxe4 {[%clk 0:02:57.9]} 6... e5 {[%clk 0:02:53.5]} 7.
Be3 {[%clk 0:02:57.5]} 7... Nf6 {[%clk 0:02:50.7]} 8. Qd2 {[%clk 0:02:57.3]}
8... exd4 {[%clk 0:02:48.4]} 9. Nxd4 {[%clk 0:02:55]} 9... Ng4 {[%clk
0:02:42.1]} 10. Bg1 {[%clk 0:02:46.8]} 10... O-O {[%clk 0:02:37.8]} 11. h3
{[%clk 0:02:46.6]} 11... Qh4+ {[%clk 0:02:34.6]} 12. Ke2 {[%clk 0:01:47.6]}
12... Rd8 {[%clk 0:02:33.9]} 13. Qd3 {[%clk 0:01:27]} 13... Ne5 {[%clk
0:02:00.6]} 14. Nf3 {[%clk 0:01:14.4]} 14... Nxd3 {[%clk 0:01:51.4]} 15. Nxh4
{[%clk 0:01:12.5]} 15... Nxb2 {[%clk 0:01:51.7]} 16. Nd1 {[%clk 0:01:06.8]}
16... Nc4 {[%clk 0:01:43.4]} 17. Rb1 {[%clk 0:01:03.2]} 17... Nd2 {[%clk
0:01:36.5]} 18. Rb4 {[%clk 0:00:56.5]} 18... Nxf1 {[%clk 0:01:34.9]} 19. Bf2
{[%clk 0:00:41]} 19... Nd2 {[%clk 0:01:26.2]} 20. Ne3 {[%clk 0:00:40.5]} 20...
a5 {[%clk 0:01:22.2]} 0-1

[Event "*** Titled Tuesday Blitz"]
[Site "Chess.com"]
[Date "2020.05.12"]
[Round "2"]
[White "TigranMukhutdinov"]
[Black "katchesskat"]
[Result "0-1"]
[WhiteElo "2421"]
[BlackElo "2226"]
[TimeControl "180+1"]
[EndTime "10:16:02 PDT"]
[Termination "katchesskat won by resignation"]

1. Nf3 {[%clk 0:03:00.9]} 1... c5 {[%clk 0:03:00.9]} 2. e4 {[%clk 0:03:00.6]}
2... e6 {[%clk 0:03:00.8]} 3. d4 {[%clk 0:03:00.2]} 3... cxd4 {[%clk 0:03:00.7]}
4. Nxd4 {[%clk 0:03:01.1]} 4... a6 {[%clk 0:03:00.8]} 5. Nc3 {[%clk 0:03:01.1]}
5... Qc7 {[%clk 0:03:00.9]} 6. Qf3 {[%clk 0:03:01.7]} 6... Nf6 {[%clk
0:02:59.3]} 7. Qg3 {[%clk 0:03:00.6]} 7... d6 {[%clk 0:02:56.9]} 8. f4 {[%clk
0:02:57.3]} 8... Nbd7 {[%clk 0:02:56.6]} 9. Bd3 {[%clk 0:02:55]} 9... b5 {[%clk
0:02:55.7]} 10. a3 {[%clk 0:02:53.4]} 10... Bb7 {[%clk 0:02:55.6]} 11. O-O
{[%clk 0:02:42.1]} 11... g6 {[%clk 0:02:55.3]} 12. Be3 {[%clk 0:02:39.2]} 12...
h5 {[%clk 0:02:53.8]} 13. h3 {[%clk 0:02:30.3]} 13... h4 {[%clk 0:02:49.9]} 14.
Qf2 {[%clk 0:02:30.5]} 14... Be7 {[%clk 0:02:49.8]} 15. f5 {[%clk 0:02:26.5]}
15... gxf5 {[%clk 0:02:49.7]} 16. exf5 {[%clk 0:02:25.5]} 16... e5 {[%clk
0:02:48.6]} 17. Nb3 {[%clk 0:02:24.3]} 17... Rg8 {[%clk 0:02:46]} 18. Rae1
{[%clk 0:01:41.8]} 18... Rxg2+ {[%clk 0:02:40.2]} 19. Qxg2 {[%clk 0:01:42.7]}
19... Bxg2 {[%clk 0:02:39.9]} 20. Kxg2 {[%clk 0:01:43.6]} 20... O-O-O {[%clk
0:02:27.5]} 21. Ne4 {[%clk 0:01:40.6]} 21... Rg8+ {[%clk 0:02:19.5]} 22. Kh1
{[%clk 0:01:38.2]} 22... Nxe4 {[%clk 0:02:04.7]} 23. Bxe4 {[%clk 0:01:38.1]}
23... Nf6 {[%clk 0:02:04.7]} 24. Bf3 {[%clk 0:01:35.9]} 24... Rg3 {[%clk
0:01:32.9]} 25. Nd2 {[%clk 0:01:26.3]} 25... Rxh3+ {[%clk 0:01:28.7]} 26. Kg2
{[%clk 0:01:26.4]} 26... Rg3+ {[%clk 0:01:28.4]} 27. Kf2 {[%clk 0:01:26.9]}
27... d5 {[%clk 0:01:18.1]} 28. Rg1 {[%clk 0:01:23.5]} 28... e4 {[%clk
0:01:09.5]} 29. Be2 {[%clk 0:01:23.4]} 29... Rxe3 {[%clk 0:00:57.1]} 0-1

[Event "*** Titled Tuesday Blitz"]
[Site "Chess.com"]
[Date "2020.05.12"]
[Round "2"]
[White "MichailovM"]
[Black "Colombiano07"]
[Result "0-1"]
[WhiteElo "2412"]
[BlackElo "2198"]
[TimeControl "180+1"]
[EndTime "10:16:02 PDT"]
[Termination "Colombiano07 won by resignation"]

1. e4 {[%clk 0:03:00.9]} 1... c5 {[%clk 0:02:57.7]} 2. Nf3 {[%clk 0:03:00.5]}
2... Nc6 {[%clk 0:02:57.7]} 3. d4 {[%clk 0:03:00.6]} 3... cxd4 {[%clk
0:02:58.6]} 4. Nxd4 {[%clk 0:03:01.3]} 4... Nf6 {[%clk 0:02:59.2]} 5. Nc3 {[%clk
0:03:01.9]} 5... g6 {[%clk 0:02:59.8]} 6. Be2 {[%clk 0:02:53.9]} 6... Bg7 {[%clk
0:03:00]} 7. Be3 {[%clk 0:02:54.5]} 7... O-O {[%clk 0:03:00.4]} 8. O-O {[%clk
0:02:54.3]} 8... d5 {[%clk 0:03:01.1]} 9. exd5 {[%clk 0:02:49.9]} 9... Nxd5
{[%clk 0:03:02]} 10. Nxd5 {[%clk 0:02:50.1]} 10... Qxd5 {[%clk 0:03:02.9]} 11.
Bf3 {[%clk 0:02:48.5]} 11... Qc4 {[%clk 0:03:03.5]} 12. Nxc6 {[%clk 0:02:47.2]}
12... bxc6 {[%clk 0:03:03.2]} 13. c3 {[%clk 0:02:48.1]} 13... Rb8 {[%clk
0:02:59.8]} 14. Qd2 {[%clk 0:02:18.8]} 14... a5 {[%clk 0:02:58.2]} 15. a4 {[%clk
0:02:06.7]} 15... Bf5 {[%clk 0:02:57.2]} 16. Rfd1 {[%clk 0:02:06.1]} 16... h5
{[%clk 0:02:50.4]} 17. h3 {[%clk 0:02:05.6]} 17... Qb3 {[%clk 0:02:45.6]} 18.
Bd4 {[%clk 0:01:23.2]} 18... Rfd8 {[%clk 0:02:34.9]} 19. Qe3 {[%clk 0:01:21]}
19... Bxd4 {[%clk 0:02:29.5]} 20. Rxd4 {[%clk 0:01:18.6]} 20... Qxb2 {[%clk
0:02:28.9]} 21. Re1 {[%clk 0:01:12.8]} 21... Rxd4 {[%clk 0:02:27.3]} 22. cxd4
{[%clk 0:01:12.8]} 22... e6 {[%clk 0:02:25.8]} 23. Bxc6 {[%clk 0:01:11.9]} 23...
Rd8 {[%clk 0:02:25.4]} 24. d5 {[%clk 0:00:28.7]} 24... exd5 {[%clk 0:02:22.3]}
25. Qa7 {[%clk 0:00:19.7]} 25... d4 {[%clk 0:02:13.7]} 26. Re7 {[%clk
0:00:19.5]} 26... Qc1+ {[%clk 0:02:12.9]} 27. Kh2 {[%clk 0:00:19.3]} 27... Qxc6
{[%clk 0:02:11.4]} 28. Rxf7 {[%clk 0:00:19.8]} 28... Qd6+ {[%clk 0:02:07.4]} 29.
g3 {[%clk 0:00:20.3]} 29... Rd7 {[%clk 0:02:04.1]} 30. Rxd7 {[%clk 0:00:19.2]}
30... Qxd7 {[%clk 0:02:05]} 31. Qxa5 {[%clk 0:00:19.7]} 31... d3 {[%clk
0:02:04.6]} 32. Qd2 {[%clk 0:00:20.3]} 32... Qxa4 {[%clk 0:02:04.2]} 33. f3
{[%clk 0:00:19.8]} 33... Qc2 {[%clk 0:02:04.1]} 0-1

[Event "*** Titled Tuesday Blitz"]
[Site "Chess.com"]
[Date "2020.05.12"]
[Round "2"]
[White "cukin84"]
[Black "Everyfishknows"]
[Result "1/2-1/2"]
[WhiteElo "2115"]
[BlackElo "2397"]
[TimeControl "180+1"]
[EndTime "10:16:08 PDT"]
[Termination "Game drawn by agreement"]

1. e4 {[%clk 0:03:00.9]} 1... e5 {[%clk 0:03:00]} 2. Nf3 {[%clk 0:03:00.2]} 2...
Nc6 {[%clk 0:03:00]} 3. c3 {[%clk 0:02:59.9]} 3... d5 {[%clk 0:02:58.6]} 4. Qa4
{[%clk 0:02:58.8]} 4... Bd7 {[%clk 0:02:57]} 5. exd5 {[%clk 0:02:57.8]} 5... Nd4
{[%clk 0:02:57.2]} 6. Qd1 {[%clk 0:02:56.8]} 6... Nxf3+ {[%clk 0:02:57.7]} 7.
Qxf3 {[%clk 0:02:56.6]} 7... Nf6 {[%clk 0:02:58.3]} 8. c4 {[%clk 0:02:55.8]}
8... c6 {[%clk 0:02:56.3]} 9. Nc3 {[%clk 0:02:51]} 9... Bc5 {[%clk 0:02:55.2]}
10. h3 {[%clk 0:02:44.6]} 10... O-O {[%clk 0:02:54.6]} 11. d3 {[%clk 0:02:42.5]}
11... h6 {[%clk 0:02:54.9]} 12. Be2 {[%clk 0:02:40.8]} 12... Bb4 {[%clk
0:02:48.3]} 13. Bd2 {[%clk 0:02:39.3]} 13... cxd5 {[%clk 0:02:47]} 14. Nxd5
{[%clk 0:02:33.1]} 14... Bxd2+ {[%clk 0:02:46.4]} 15. Kxd2 {[%clk 0:02:32.9]}
15... Bc6 {[%clk 0:02:31.1]} 16. Nxf6+ {[%clk 0:02:31.2]} 16... gxf6 {[%clk
0:02:32]} 17. Qg4+ {[%clk 0:02:24.6]} 17... Kh8 {[%clk 0:02:28.3]} 18. Qh4
{[%clk 0:02:11.5]} 18... Kg7 {[%clk 0:02:23.8]} 19. Qg4+ {[%clk 0:02:02.3]}
19... Kh8 {[%clk 0:02:23.3]} 20. Qh4 {[%clk 0:02:01.7]} 20... Kg7 {[%clk
0:02:23.1]} 21. f3 {[%clk 0:01:55.4]} 21... f5 {[%clk 0:02:20]} 22. Qxd8 {[%clk
0:01:50.8]} 22... Raxd8 {[%clk 0:02:20.5]} 23. Ke3 {[%clk 0:01:51]} 23... f4+
{[%clk 0:02:19.5]} 24. Kf2 {[%clk 0:01:50.5]} 24... Rd4 {[%clk 0:02:17.3]} 25.
b3 {[%clk 0:01:47.5]} 25... Rfd8 {[%clk 0:02:17]} 26. h4 {[%clk 0:01:45.2]}
26... Bd7 {[%clk 0:02:13.8]} 27. g3 {[%clk 0:01:40.6]} 27... fxg3+ {[%clk
0:02:08.3]} 28. Kxg3 {[%clk 0:01:40.6]} 28... Bf5 {[%clk 0:02:08.6]} 29. Rag1
{[%clk 0:01:39]} 29... Bxd3 {[%clk 0:02:06.9]} 30. Bxd3 {[%clk 0:01:28.5]} 30...
Rxd3 {[%clk 0:02:07.1]} 31. Rg2 {[%clk 0:01:25.8]} 31... Rd2 {[%clk 0:02:06.2]}
32. Rhg1 {[%clk 0:01:24.2]} 32... f5 {[%clk 0:02:01.4]} 33. Rxd2 {[%clk
0:01:18.5]} 33... Rxd2 {[%clk 0:02:00.6]} 34. Rg2 {[%clk 0:01:18.8]} 34... Rxg2+
{[%clk 0:01:32.5]} 35. Kxg2 {[%clk 0:01:18.5]} 35... a5 {[%clk 0:01:31]} 36. a3
{[%clk 0:01:17.5]} 36... Kf6 {[%clk 0:01:30.1]} 37. Kf2 {[%clk 0:01:14.4]} 37...
Ke6 {[%clk 0:01:28.9]} 38. Ke3 {[%clk 0:01:14.4]} 38... Kd6 {[%clk 0:01:27.7]}
39. b4 {[%clk 0:01:14.2]} 39... axb4 {[%clk 0:01:27.6]} 40. axb4 {[%clk
0:01:13.3]} 40... b6 {[%clk 0:01:28]} 41. h5 {[%clk 0:01:08.4]} 41... Kc6 {[%clk
0:01:24.6]} 42. Kd3 {[%clk 0:01:08.1]} 1/2-1/2

[Event "*** Titled Tuesday Blitz"]
[Site "Chess.com"]
[Date "2020.05.12"]
[Round "2"]
[White "amiralfio"]
[Black "EvgenyRomanov"]
[Result "1-0"]
[WhiteElo "2460"]
[BlackElo "2648"]
[TimeControl "180+1"]
[EndTime "10:16:11 PDT"]
[Termination "amiralfio won by resignation"]

1. e4 {[%clk 0:02:58.8]} 1... c6 {[%clk 0:02:59.2]} 2. Nc3 {[%clk 0:02:54.5]}
2... d5 {[%clk 0:03:00.1]} 3. Nf3 {[%clk 0:02:53.7]} 3... Bg4 {[%clk 0:02:59.3]}
4. h3 {[%clk 0:02:53.8]} 4... Bxf3 {[%clk 0:02:59.3]} 5. gxf3 {[%clk 0:02:54.7]}
5... e6 {[%clk 0:02:57.2]} 6. d4 {[%clk 0:02:50.3]} 6... Nd7 {[%clk 0:02:52.3]}
7. Be3 {[%clk 0:02:45.8]} 7... Qb6 {[%clk 0:02:46.3]} 8. Qd2 {[%clk 0:02:44.1]}
8... Qxb2 {[%clk 0:02:28.5]} 9. Rb1 {[%clk 0:02:41.1]} 9... Qa3 {[%clk
0:02:28.6]} 10. Bd3 {[%clk 0:02:08.9]} 10... Qa5 {[%clk 0:02:24.2]} 11. O-O
{[%clk 0:02:04.1]} 11... Qc7 {[%clk 0:02:18.7]} 12. f4 {[%clk 0:01:55.2]} 12...
dxe4 {[%clk 0:02:14.9]} 13. Nxe4 {[%clk 0:01:56.1]} 13... Nh6 {[%clk 0:02:11.7]}
14. Ng3 {[%clk 0:01:51.6]} 14... Bd6 {[%clk 0:02:03]} 15. Kg2 {[%clk 0:01:43.2]}
15... O-O {[%clk 0:01:57.3]} 16. f5 {[%clk 0:01:32.7]} 16... Nxf5 {[%clk
0:01:55.9]} 17. Bxf5 {[%clk 0:01:25.7]} 17... exf5 {[%clk 0:01:56.4]} 18. Nxf5
{[%clk 0:01:26]} 18... Rfe8 {[%clk 0:01:46]} 19. Rg1 {[%clk 0:01:17.9]} 19...
Bf8 {[%clk 0:01:41.7]} 20. Kh1 {[%clk 0:00:48.3]} 20... g6 {[%clk 0:01:40.7]}
21. Rg3 {[%clk 0:00:43.7]} 21... Qa5 {[%clk 0:01:37]} 22. Qxa5 {[%clk
0:00:20.8]} 1-0

[Event "*** Titled Tuesday Blitz"]
[Site "Chess.com"]
[Date "2020.05.12"]
[Round "2"]
[White "robertofabregas"]
[Black "Kostya26"]
[Result "0-1"]
[WhiteElo "2099"]
[BlackElo "2400"]
[TimeControl "180+1"]
[EndTime "10:16:14 PDT"]
[Termination "Kostya26 won by resignation"]

1. c4 {[%clk 0:03:00.9]} 1... e6 {[%clk 0:02:59.4]} 2. Nf3 {[%clk 0:02:59.3]}
2... d5 {[%clk 0:03:00.3]} 3. d4 {[%clk 0:02:56.4]} 3... Nf6 {[%clk 0:03:01.2]}
4. g3 {[%clk 0:02:56.8]} 4... c6 {[%clk 0:03:02.1]} 5. Bg2 {[%clk 0:02:57.4]}
5... Be7 {[%clk 0:03:01.2]} 6. Nc3 {[%clk 0:02:57.9]} 6... O-O {[%clk
0:03:01.3]} 7. O-O {[%clk 0:02:58.5]} 7... Nbd7 {[%clk 0:02:54.9]} 8. a4 {[%clk
0:02:55]} 8... a5 {[%clk 0:02:50.9]} 9. Re1 {[%clk 0:02:50.6]} 9... b6 {[%clk
0:02:46.4]} 10. Ne5 {[%clk 0:02:49.3]} 10... Nxe5 {[%clk 0:02:44.2]} 11. dxe5
{[%clk 0:02:48.1]} 11... Nd7 {[%clk 0:02:40.5]} 12. f4 {[%clk 0:02:45]} 12...
Ba6 {[%clk 0:02:15.9]} 13. cxd5 {[%clk 0:02:32.7]} 13... cxd5 {[%clk 0:02:14.8]}
14. Qb3 {[%clk 0:02:22.8]} 14... Nc5 {[%clk 0:02:02.1]} 15. Qc2 {[%clk
0:02:17.4]} 15... Rc8 {[%clk 0:01:59.6]} 16. Bd2 {[%clk 0:02:06.6]} 16... d4
{[%clk 0:01:47.5]} 17. Nb5 {[%clk 0:01:56.4]} 17... d3 {[%clk 0:01:38.3]} 18.
Qd1 {[%clk 0:01:42.7]} 18... dxe2 {[%clk 0:01:26.4]} 19. Qxe2 {[%clk 0:01:36.7]}
19... Nd3 {[%clk 0:01:19.2]} 20. Red1 {[%clk 0:01:01.2]} 20... Nxb2 {[%clk
0:01:12.2]} 21. Rdb1 {[%clk 0:01:01.5]} 21... Rc2 {[%clk 0:01:04]} 22. Rxb2
{[%clk 0:00:52.7]} 22... Rxb2 {[%clk 0:01:00.2]} 23. Qe3 {[%clk 0:00:53.2]}
23... Bc5 {[%clk 0:00:57.4]} 0-1

[Event "*** Titled Tuesday Blitz"]
[Site "Chess.com"]
[Date "2020.05.12"]
[Round "2"]
[White "GodDMuhammad"]
[Black "manitodeplomo"]
[Result "1-0"]
[WhiteElo "2275"]
[BlackElo "2601"]
[TimeControl "180+1"]
[EndTime "10:16:16 PDT"]
[Termination "GodDMuhammad won by checkmate"]

1. f4 {[%clk 0:03:00.9]} 1... g6 {[%clk 0:02:52.6]} 2. Nf3 {[%clk 0:02:59.5]}
2... Bg7 {[%clk 0:02:53.5]} 3. g3 {[%clk 0:02:59.5]} 3... c5 {[%clk 0:02:53.4]}
4. d3 {[%clk 0:02:59.4]} 4... Nc6 {[%clk 0:02:53.1]} 5. c3 {[%clk 0:02:58.5]}
5... d5 {[%clk 0:02:49]} 6. Bg2 {[%clk 0:02:57.4]} 6... Nf6 {[%clk 0:02:49.9]}
7. Qc2 {[%clk 0:02:56.8]} 7... O-O {[%clk 0:02:50.8]} 8. e4 {[%clk 0:02:57]}
8... c4 {[%clk 0:02:42.9]} 9. e5 {[%clk 0:02:55.8]} 9... cxd3 {[%clk 0:02:42.7]}
10. Qxd3 {[%clk 0:02:55.4]} 10... Bf5 {[%clk 0:02:42.9]} 11. Qe2 {[%clk
0:02:55.3]} 11... Ne4 {[%clk 0:02:42.3]} 12. Nh4 {[%clk 0:02:48.6]} 12... f6
{[%clk 0:02:33.6]} 13. Nxf5 {[%clk 0:02:45.1]} 13... gxf5 {[%clk 0:02:34.5]} 14.
exf6 {[%clk 0:02:43.8]} 14... Bxf6 {[%clk 0:02:21.2]} 15. O-O {[%clk 0:02:42.7]}
15... e6 {[%clk 0:02:20.7]} 16. Be3 {[%clk 0:02:40.3]} 16... Kh8 {[%clk
0:02:18.7]} 17. Nd2 {[%clk 0:02:39.8]} 17... Rg8 {[%clk 0:02:19]} 18. Nxe4
{[%clk 0:02:38.2]} 18... fxe4 {[%clk 0:02:08.3]} 19. Rad1 {[%clk 0:02:34.5]}
19... Qe7 {[%clk 0:02:06.4]} 20. f5 {[%clk 0:02:30.4]} 20... Bg5 {[%clk
0:01:43.7]} 21. fxe6 {[%clk 0:02:16.1]} 21... Qxe6 {[%clk 0:01:42.7]} 22. Rf2
{[%clk 0:01:49.8]} 22... Bxe3 {[%clk 0:01:25.5]} 23. Qxe3 {[%clk 0:01:49.5]}
23... Raf8 {[%clk 0:01:25.8]} 24. Rdf1 {[%clk 0:01:43]} 24... Rxf2 {[%clk
0:01:25.1]} 25. Rxf2 {[%clk 0:01:43.9]} 25... Re8 {[%clk 0:01:11]} 26. Rf4
{[%clk 0:01:35.9]} 26... b6 {[%clk 0:01:05.8]} 27. Rh4 {[%clk 0:01:27.5]} 27...
Qe5 {[%clk 0:01:02]} 28. Qh6 {[%clk 0:01:19.9]} 28... Re7 {[%clk 0:00:36.3]} 29.
Qf8# {[%clk 0:01:17.3]} 1-0

[Event "*** Titled Tuesday Blitz"]
[Site "Chess.com"]
[Date "2020.05.12"]
[Round "2"]
[White "Boudicca64"]
[Black "not_najdorfs_player"]
[Result "1-0"]
[WhiteElo "2017"]
[BlackElo "2362"]
[TimeControl "180+1"]
[EndTime "10:16:16 PDT"]
[Termination "Boudicca64 won by resignation"]

1. d4 {[%clk 0:02:59.1]} 1... d5 {[%clk 0:02:59.6]} 2. c4 {[%clk 0:02:58.7]}
2... e6 {[%clk 0:02:59.8]} 3. Nf3 {[%clk 0:02:55.6]} 3... Nf6 {[%clk 0:02:59.8]}
4. Nc3 {[%clk 0:02:56.5]} 4... Be7 {[%clk 0:02:59.1]} 5. Bg5 {[%clk 0:02:50.9]}
5... h6 {[%clk 0:02:57]} 6. Bxf6 {[%clk 0:02:50.4]} 6... Bxf6 {[%clk 0:02:56.6]}
7. e3 {[%clk 0:02:50.7]} 7... O-O {[%clk 0:02:55]} 8. Qc2 {[%clk 0:02:49.7]}
8... c6 {[%clk 0:02:49.1]} 9. O-O-O {[%clk 0:02:45.2]} 9... Nd7 {[%clk
0:02:45.3]} 10. h4 {[%clk 0:02:33]} 10... dxc4 {[%clk 0:02:43.4]} 11. g4 {[%clk
0:02:26.9]} 11... b5 {[%clk 0:02:23.8]} 12. g5 {[%clk 0:02:25.4]} 12... Be7
{[%clk 0:02:24.2]} 13. gxh6 {[%clk 0:02:25.5]} 13... gxh6 {[%clk 0:02:24.5]} 14.
Be2 {[%clk 0:01:37.6]} 14... Kh8 {[%clk 0:02:15]} 15. Ng5 {[%clk 0:01:36]} 15...
Bxg5 {[%clk 0:02:01.3]} 16. hxg5 {[%clk 0:01:34.8]} 16... Qxg5 {[%clk
0:02:01.9]} 17. Rdg1 {[%clk 0:01:33.9]} 17... Qxg1+ {[%clk 0:01:48.1]} 18. Rxg1
{[%clk 0:01:33.1]} 18... Nf6 {[%clk 0:01:47.2]} 19. Ne4 {[%clk 0:01:18.9]} 19...
Nxe4 {[%clk 0:01:36.2]} 20. Qxe4 {[%clk 0:01:19.8]} 20... Rg8 {[%clk 0:01:36.1]}
21. Rxg8+ {[%clk 0:00:56]} 21... Kxg8 {[%clk 0:01:37]} 22. Qxc6 {[%clk
0:00:56.1]} 22... Rb8 {[%clk 0:01:36.6]} 23. Qc7 {[%clk 0:00:56.6]} 23... Ra8
{[%clk 0:01:35]} 24. Bf3 {[%clk 0:00:56.3]} 24... Bb7 {[%clk 0:01:35.2]} 25.
Bxb7 {[%clk 0:00:54.8]} 25... Rf8 {[%clk 0:01:35.8]} 26. Be4 {[%clk 0:00:53.5]}
26... f5 {[%clk 0:01:29]} 27. Bc6 {[%clk 0:00:47.6]} 27... h5 {[%clk 0:01:24.2]}
28. Qe7 {[%clk 0:00:43.1]} 28... Rf7 {[%clk 0:01:18.9]} 29. Qg5+ {[%clk
0:00:43.1]} 29... Rg7 {[%clk 0:01:18]} 30. Qxh5 {[%clk 0:00:43.3]} 1-0

[Event "*** Titled Tuesday Blitz"]
[Site "Chess.com"]
[Date "2020.05.12"]
[Round "2"]
[White "GHANDEEVAM2003"]
[Black "Shoytan"]
[Result "0-1"]
[WhiteElo "2925"]
[BlackElo "2586"]
[TimeControl "180+1"]
[EndTime "10:16:19 PDT"]
[Termination "Shoytan won by resignation"]

1. e4 {[%clk 0:03:00.9]} 1... c5 {[%clk 0:02:58.5]} 2. Nf3 {[%clk 0:03:00.9]}
2... Nc6 {[%clk 0:02:58.3]} 3. d4 {[%clk 0:03:01.1]} 3... cxd4 {[%clk 0:02:58]}
4. Nxd4 {[%clk 0:03:02]} 4... Nf6 {[%clk 0:02:58.3]} 5. Nc3 {[%clk 0:03:02.4]}
5... e5 {[%clk 0:02:58.6]} 6. Ndb5 {[%clk 0:03:01.6]} 6... d6 {[%clk 0:02:57.2]}
7. Bg5 {[%clk 0:03:02]} 7... a6 {[%clk 0:02:56.1]} 8. Na3 {[%clk 0:03:02.6]}
8... b5 {[%clk 0:02:56.3]} 9. Nd5 {[%clk 0:03:02.9]} 9... Be7 {[%clk 0:02:55]}
10. Bxf6 {[%clk 0:03:03.4]} 10... Bxf6 {[%clk 0:02:55.2]} 11. c3 {[%clk
0:03:04.3]} 11... Ne7 {[%clk 0:02:45.8]} 12. Nc2 {[%clk 0:03:00.7]} 12... Nxd5
{[%clk 0:02:20.6]} 13. Qxd5 {[%clk 0:03:01.6]} 13... Be6 {[%clk 0:02:15.7]} 14.
Qc6+ {[%clk 0:03:00.3]} 14... Bd7 {[%clk 0:02:13.3]} 15. Qxd6 {[%clk 0:02:59.7]}
15... Be7 {[%clk 0:02:10]} 16. Qxe5 {[%clk 0:02:30.5]} 16... O-O {[%clk
0:02:07.9]} 17. Be2 {[%clk 0:02:31.1]} 17... Re8 {[%clk 0:02:04.5]} 18. Rd1
{[%clk 0:02:18.8]} 18... Qc8 {[%clk 0:01:56.5]} 19. O-O {[%clk 0:02:12.8]} 19...
Bc6 {[%clk 0:01:45.2]} 20. Qf4 {[%clk 0:02:06.8]} 20... Bf6 {[%clk 0:01:40.6]}
21. f3 {[%clk 0:02:02.3]} 21... a5 {[%clk 0:01:33.8]} 22. a3 {[%clk 0:01:58.5]}
22... b4 {[%clk 0:01:30.4]} 23. axb4 {[%clk 0:01:55.9]} 23... Ba4 {[%clk
0:01:30.3]} 24. Rc1 {[%clk 0:01:34.5]} 24... Bxc2 {[%clk 0:01:29.6]} 25. Rxc2
{[%clk 0:01:35.4]} 25... axb4 {[%clk 0:01:30.1]} 26. c4 {[%clk 0:01:28.1]} 26...
b3 {[%clk 0:01:18.9]} 27. Rcc1 {[%clk 0:01:19.1]} 27... Qc5+ {[%clk 0:01:13.1]}
28. Kh1 {[%clk 0:01:18.8]} 28... Bg5 {[%clk 0:01:13.1]} 29. Qg3 {[%clk
0:01:14.2]} 29... Bxc1 {[%clk 0:01:12.6]} 30. Rxc1 {[%clk 0:01:15.1]} 30... Qe3
{[%clk 0:01:12.5]} 31. Qe1 {[%clk 0:01:15.5]} 31... Ra2 {[%clk 0:01:06]} 32. Rc3
{[%clk 0:01:12.9]} 32... Qxe2 {[%clk 0:00:59.1]} 0-1

[Event "*** Titled Tuesday Blitz"]
[Site "Chess.com"]
[Date "2020.05.12"]
[Round "2"]
[White "deep306"]
[Black "miruna_daria28"]
[Result "1-0"]
[WhiteElo "2515"]
[BlackElo "2274"]
[TimeControl "180+1"]
[EndTime "10:16:25 PDT"]
[Termination "deep306 won on time"]

1. d4 {[%clk 0:03:00.9]} 1... Nf6 {[%clk 0:02:54.5]} 2. Bf4 {[%clk 0:03:00.6]}
2... e6 {[%clk 0:02:51.5]} 3. e3 {[%clk 0:03:00.1]} 3... d5 {[%clk 0:02:38.5]}
4. Nd2 {[%clk 0:02:58.2]} 4... Bd6 {[%clk 0:02:34.7]} 5. Bg3 {[%clk 0:02:55.7]}
5... O-O {[%clk 0:02:34.5]} 6. c3 {[%clk 0:02:54.9]} 6... b6 {[%clk 0:02:34.6]}
7. Bd3 {[%clk 0:02:48.3]} 7... c5 {[%clk 0:02:26.1]} 8. Qe2 {[%clk 0:02:46.8]}
8... Bb7 {[%clk 0:02:22.4]} 9. Bxd6 {[%clk 0:02:41.5]} 9... Qxd6 {[%clk
0:02:21.7]} 10. f4 {[%clk 0:02:41.4]} 10... Nc6 {[%clk 0:02:13.8]} 11. Nh3
{[%clk 0:02:37.3]} 11... c4 {[%clk 0:01:29.8]} 12. Bc2 {[%clk 0:02:34.8]} 12...
b5 {[%clk 0:01:30]} 13. O-O {[%clk 0:02:27.5]} 13... b4 {[%clk 0:01:27.7]} 14.
g4 {[%clk 0:02:23.2]} 14... bxc3 {[%clk 0:01:02.2]} 15. bxc3 {[%clk 0:02:22.9]}
15... Nd7 {[%clk 0:00:21.7]} 16. Qf2 {[%clk 0:02:02.8]} 16... Qe7 {[%clk
0:00:09.1]} 17. Nf3 {[%clk 0:01:58.8]} 17... Rab8 {[%clk 0:00:05.2]} 18. Bxh7+
{[%clk 0:01:49.8]} 18... Kxh7 {[%clk 0:00:04.9]} 19. Nhg5+ {[%clk 0:01:50.1]}
19... Kg8 {[%clk 0:00:03.5]} 20. Qh4 {[%clk 0:01:49.6]} 20... Nf6 {[%clk
0:00:02.7]} 21. Ne5 {[%clk 0:01:39.7]} 21... g6 {[%clk 0:00:02.9]} 22. Qh6
{[%clk 0:01:32.8]} 1-0